Workbook

Sheet DOCU_DCF
B2: Company Name | C2: DocuSign
B3: Ticker | C3: DOCU
B4: Share Price | C4: 53.89
B5: Valuation Date | C5: 2024-03-07
B7: =C2&" ("&C3&") DISCOUNTED CASH FLOWS MODEL" -> DocuSign (DOCU) DISCOUNTED CASH FLOWS MODEL
B8: Fiscal year ends in January USD in thousands except per share data.
A10: x | B10: FORECASTING CASH FLOWS
F12: Historical | K12: Projected
F13: 2019 | G13: =F13+1 -> 2020 | H13: 2021 | I13: 2022 | J13: 2023 | K13: 2024 | L13: 2025 | M13: 2026 | N13: 2027 | O13: 2028 | P13: 2029 | Q13: 2030
B14: Revenue - subscription | F14: =INDEX(DOCU_IS!$A$10:$F$54,MATCH(DOCU_DCF!$B14,DOCU_IS!$A$10:$A$54,0),MATCH(DOCU_DCF!F$13,DOCU_IS!$A$10:$F$10,0)) -> 663657 | G14: =INDEX(DOCU_IS!$A$10:$F$54,MATCH(DOCU_DCF!$B14,DOCU_IS!$A$10:$A$54,0),MATCH(DOCU_DCF!G$13,DOCU_IS!$A$10:$F$10,0)) -> 918463 | H14: =INDEX(DOCU_IS!$A$10:$F$54,MATCH(DOCU_DCF!$B14,DOCU_IS!$A$10:$A$54,0),MATCH(DOCU_DCF!H$13,DOCU_IS!$A$10:$F$10,0)) -> 1381397 | I14: =INDEX(DOCU_IS!$A$10:$F$54,MATCH(DOCU_DCF!$B14,DOCU_IS!$A$10:$A$54,0),MATCH(DOCU_DCF!I$13,DOCU_IS!$A$10:$F$10,0)) -> 2037272 | J14: =INDEX(DOCU_IS!$A$10:$F$54,MATCH(DOCU_DCF!$B14,DOCU_IS!$A$10:$A$54,0),MATCH(DOCU_DCF!J$13,DOCU_IS!$A$10:$F$10,0)) -> 2442177 | K14: =J14*(1+K38) -> 2670000 | L14: 2864764.5 | M14: 3079621.837 | N14: 3325991.585 | O14: 3592070.911 | P14: 3879436.584 | Q14: 4189791.511
B15: Revenue - professional services & other revenue | F15: =INDEX(DOCU_IS!$A$10:$F$54,MATCH(DOCU_DCF!$B15,DOCU_IS!$A$10:$A$54,0),MATCH(DOCU_DCF!F$13,DOCU_IS!$A$10:$F$10,0)) -> 37312 | G15: =INDEX(DOCU_IS!$A$10:$F$54,MATCH(DOCU_DCF!$B15,DOCU_IS!$A$10:$A$54,0),MATCH(DOCU_DCF!G$13,DOCU_IS!$A$10:$F$10,0)) -> 55508 | H15: =INDEX(DOCU_IS!$A$10:$F$54,MATCH(DOCU_DCF!$B15,DOCU_IS!$A$10:$A$54,0),MATCH(DOCU_DCF!H$13,DOCU_IS!$A$10:$F$10,0)) -> 71650 | I15: =INDEX(DOCU_IS!$A$10:$F$54,MATCH(DOCU_DCF!$B15,DOCU_IS!$A$10:$A$54,0),MATCH(DOCU_DCF!I$13,DOCU_IS!$A$10:$F$10,0)) -> 69941 | J15: =INDEX(DOCU_IS!$A$10:$F$54,MATCH(DOCU_DCF!$B15,DOCU_IS!$A$10:$A$54,0),MATCH(DOCU_DCF!J$13,DOCU_IS!$A$10:$F$10,0)) -> 73738 | K15: 76000 | L15: 73455.5 | M15: 78964.6625 | N15: 85281.8355 | O15: 92104.38234 | P15: 99472.73293 | Q15: 107430.5516
B16: Total Revenue | F16: =INDEX(DOCU_IS!$A$10:$F$54,MATCH(DOCU_DCF!$B16,DOCU_IS!$A$10:$A$54,0),MATCH(DOCU_DCF!F$13,DOCU_IS!$A$10:$F$10,0)) -> 700969 | G16: =INDEX(DOCU_IS!$A$10:$F$54,MATCH(DOCU_DCF!$B16,DOCU_IS!$A$10:$A$54,0),MATCH(DOCU_DCF!G$13,DOCU_IS!$A$10:$F$10,0)) -> 973971 | H16: =INDEX(DOCU_IS!$A$10:$F$54,MATCH(DOCU_DCF!$B16,DOCU_IS!$A$10:$A$54,0),MATCH(DOCU_DCF!H$13,DOCU_IS!$A$10:$F$10,0)) -> 1453047 | I16: =INDEX(DOCU_IS!$A$10:$F$54,MATCH(DOCU_DCF!$B16,DOCU_IS!$A$10:$A$54,0),MATCH(DOCU_DCF!I$13,DOCU_IS!$A$10:$F$10,0)) -> 2107213 | J16: =INDEX(DOCU_IS!$A$10:$F$54,MATCH(DOCU_DCF!$B16,DOCU_IS!$A$10:$A$54,0),MATCH(DOCU_DCF!J$13,DOCU_IS!$A$10:$F$10,0)) -> 2515915 | K16: 2746000 | L16: 2938220 | M16: 3158586.5 | N16: 3411273.42 | O16: 3684175.294 | P16: 3978909.317 | Q16: 4297222.062
B17: Cost of revenue - subscription | F17: =INDEX(DOCU_IS!$A$10:$F$54,MATCH(DOCU_DCF!$B17,DOCU_IS!$A$10:$A$54,0),MATCH(DOCU_DCF!F$13,DOCU_IS!$A$10:$F$10,0)) -> 117764 | G17: =INDEX(DOCU_IS!$A$10:$F$54,MATCH(DOCU_DCF!$B17,DOCU_IS!$A$10:$A$54,0),MATCH(DOCU_DCF!G$13,DOCU_IS!$A$10:$F$10,0)) -> 163931 | H17: =INDEX(DOCU_IS!$A$10:$F$54,MATCH(DOCU_DCF!$B17,DOCU_IS!$A$10:$A$54,0),MATCH(DOCU_DCF!H$13,DOCU_IS!$A$10:$F$10,0)) -> 259992 | I17: =INDEX(DOCU_IS!$A$10:$F$54,MATCH(DOCU_DCF!$B17,DOCU_IS!$A$10:$A$54,0),MATCH(DOCU_DCF!I$13,DOCU_IS!$A$10:$F$10,0)) -> 343661 | J17: =INDEX(DOCU_IS!$A$10:$F$54,MATCH(DOCU_DCF!$B17,DOCU_IS!$A$10:$A$54,0),MATCH(DOCU_DCF!J$13,DOCU_IS!$A$10:$F$10,0)) -> 426077 | K17: =K14*K41 -> 453900 | L17: 487009.965 | M17: 523535.7124 | N17: 565418.5694 | O17: 610652.0549 | P17: 659504.2193 | Q17: 712264.5569
B18: Cost of revenue - professional services & other cost of revenue | F18: =INDEX(DOCU_IS!$A$10:$F$54,MATCH(DOCU_DCF!$B18,DOCU_IS!$A$10:$A$54,0),MATCH(DOCU_DCF!F$13,DOCU_IS!$A$10:$F$10,0)) -> 74657 | G18: =INDEX(DOCU_IS!$A$10:$F$54,MATCH(DOCU_DCF!$B18,DOCU_IS!$A$10:$A$54,0),MATCH(DOCU_DCF!G$13,DOCU_IS!$A$10:$F$10,0)) -> 79303 | H18: =INDEX(DOCU_IS!$A$10:$F$54,MATCH(DOCU_DCF!$B18,DOCU_IS!$A$10:$A$54,0),MATCH(DOCU_DCF!H$13,DOCU_IS!$A$10:$F$10,0)) -> 104066 | I18: =INDEX(DOCU_IS!$A$10:$F$54,MATCH(DOCU_DCF!$B18,DOCU_IS!$A$10:$A$54,0),MATCH(DOCU_DCF!I$13,DOCU_IS!$A$10:$F$10,0)) -> 122790 | J18: =INDEX(DOCU_IS!$A$10:$F$54,MATCH(DOCU_DCF!$B18,DOCU_IS!$A$10:$A$54,0),MATCH(DOCU_DCF!J$13,DOCU_IS!$A$10:$F$10,0)) -> 110011 | K18: 114000 | L18: 104674.0875 | M18: 106602.2944 | N18: 108734.3403 | O18: 110525.2588 | P18: 119367.2795 | Q18: 128916.6619
B19: Gross Profit | F19: =F16-F17-F18 -> 508548 | G19: 730737 | H19: 1088989 | I19: 1640762 | J19: 1979827 | K19: 2178100 | L19: 2346535.948 | M19: 2528448.493 | N19: 2737120.51 | O19: 2962997.98 | P19: 3200037.818 | Q19: 3456040.844
B21: Sales & marketing expense | F21: =INDEX(DOCU_IS!$A$10:$F$54,MATCH(DOCU_DCF!$B21,DOCU_IS!$A$10:$A$54,0),MATCH(DOCU_DCF!F$13,DOCU_IS!$A$10:$F$10,0)) -> 539606 | G21: =INDEX(DOCU_IS!$A$10:$F$54,MATCH(DOCU_DCF!$B21,DOCU_IS!$A$10:$A$54,0),MATCH(DOCU_DCF!G$13,DOCU_IS!$A$10:$F$10,0)) -> 591379 | H21: =INDEX(DOCU_IS!$A$10:$F$54,MATCH(DOCU_DCF!$B21,DOCU_IS!$A$10:$A$54,0),MATCH(DOCU_DCF!H$13,DOCU_IS!$A$10:$F$10,0)) -> 798625 | I21: =INDEX(DOCU_IS!$A$10:$F$54,MATCH(DOCU_DCF!$B21,DOCU_IS!$A$10:$A$54,0),MATCH(DOCU_DCF!I$13,DOCU_IS!$A$10:$F$10,0)) -> 1076527 | J21: =INDEX(DOCU_IS!$A$10:$F$54,MATCH(DOCU_DCF!$B21,DOCU_IS!$A$10:$A$54,0),MATCH(DOCU_DCF!J$13,DOCU_IS!$A$10:$F$10,0)) -> 1242711 | K21: =K16*K43 -> 1235700 | L21: 1248743.5 | M21: 1263434.6 | N21: 1279227.532 | O21: 1289461.353 | P21: 1392618.261 | Q21: 1504027.722
B22: Research & development expense | F22: =INDEX(DOCU_IS!$A$10:$F$54,MATCH(DOCU_DCF!$B22,DOCU_IS!$A$10:$A$54,0),MATCH(DOCU_DCF!F$13,DOCU_IS!$A$10:$F$10,0)) -> 185968 | G22: =INDEX(DOCU_IS!$A$10:$F$54,MATCH(DOCU_DCF!$B22,DOCU_IS!$A$10:$A$54,0),MATCH(DOCU_DCF!G$13,DOCU_IS!$A$10:$F$10,0)) -> 185552 | H22: =INDEX(DOCU_IS!$A$10:$F$54,MATCH(DOCU_DCF!$B22,DOCU_IS!$A$10:$A$54,0),MATCH(DOCU_DCF!H$13,DOCU_IS!$A$10:$F$10,0)) -> 271522 | I22: =INDEX(DOCU_IS!$A$10:$F$54,MATCH(DOCU_DCF!$B22,DOCU_IS!$A$10:$A$54,0),MATCH(DOCU_DCF!I$13,DOCU_IS!$A$10:$F$10,0)) -> 393362 | J22: =INDEX(DOCU_IS!$A$10:$F$54,MATCH(DOCU_DCF!$B22,DOCU_IS!$A$10:$A$54,0),MATCH(DOCU_DCF!J$13,DOCU_IS!$A$10:$F$10,0)) -> 480584 | K22: =K16*K44 -> 521740 | L22: 550916.25 | M22: 584338.5025 | N22: 622557.3992 | O22: 663151.5528 | P22: 716203.6771 | Q22: 773499.9712
B23: General & administrative expense | F23: =INDEX(DOCU_IS!$A$10:$F$54,MATCH(DOCU_DCF!$B23,DOCU_IS!$A$10:$A$54,0),MATCH(DOCU_DCF!F$13,DOCU_IS!$A$10:$F$10,0)) -> 209297 | G23: =INDEX(DOCU_IS!$A$10:$F$54,MATCH(DOCU_DCF!$B23,DOCU_IS!$A$10:$A$54,0),MATCH(DOCU_DCF!G$13,DOCU_IS!$A$10:$F$10,0)) -> 147315 | H23: =INDEX(DOCU_IS!$A$10:$F$54,MATCH(DOCU_DCF!$B23,DOCU_IS!$A$10:$A$54,0),MATCH(DOCU_DCF!H$13,DOCU_IS!$A$10:$F$10,0)) -> 192697 | I23: =INDEX(DOCU_IS!$A$10:$F$54,MATCH(DOCU_DCF!$B23,DOCU_IS!$A$10:$A$54,0),MATCH(DOCU_DCF!I$13,DOCU_IS!$A$10:$F$10,0)) -> 232757 | J23: =INDEX(DOCU_IS!$A$10:$F$54,MATCH(DOCU_DCF!$B23,DOCU_IS!$A$10:$A$54,0),MATCH(DOCU_DCF!J$13,DOCU_IS!$A$10:$F$10,0)) -> 316228 | K23: =K16*K45 -> 343250 | L23: 341568.075 | M23: 339548.0487 | N23: 336863.2502 | O23: 331575.7764 | P23: 358101.8385 | Q23: 386749.9856
B24: EBIT | F24: =F19-F21-F22-F23 -> -426323 | G24: -193509 | H24: -173855 | I24: -61884 | J24: -59696 | K24: 77410 | L24: 205308.1225 | M24: 341127.342 | N24: 498472.3285 | O24: 678809.2978 | P24: 733114.0417 | Q24: 791763.165
B25: NOL carryforward balance | J25: 2700000 | K25: =J25-K24 -> 2622590 | L25: =K25-L24 -> 2417281.877 | M25: 2076154.535 | N25: 1577682.207 | O25: 898872.9092 | P25: 165758.8675 | Q25: -626004.2975
B26: Taxes | D26: 0.25 | K26: =IF(K25>0,0,K25*$D$26*-1) -> 0 | L26: =IF(L25>0,0,L25*$D$26*-1) -> 0 | M26: 0 | N26: 0 | O26: 0 | P26: 0 | Q26: 156501.0744
B27: Tax-effected EBIT | F27: =F24-F26 -> -426323 | G27: -193509 | H27: -173855 | I27: -61884 | J27: -59696 | K27: 77410 | L27: 205308.1225 | M27: 341127.342 | N27: 498472.3285 | O27: 678809.2978 | P27: 733114.0417 | Q27: 635262.0906
B29: Depreciation and amortization | F29: =INDEX(DOCU_IS!$A$10:$F$60,MATCH(DOCU_DCF!$B29,DOCU_IS!$A$10:$A$60,0),MATCH(DOCU_DCF!F$13,DOCU_IS!$A$10:$F$10,0)) -> 38027 | G29: =INDEX(DOCU_IS!$A$10:$F$60,MATCH(DOCU_DCF!$B29,DOCU_IS!$A$10:$A$60,0),MATCH(DOCU_DCF!G$13,DOCU_IS!$A$10:$F$10,0)) -> 50182 | H29: =INDEX(DOCU_IS!$A$10:$F$60,MATCH(DOCU_DCF!$B29,DOCU_IS!$A$10:$A$60,0),MATCH(DOCU_DCF!H$13,DOCU_IS!$A$10:$F$10,0)) -> 71090 | I29: =INDEX(DOCU_IS!$A$10:$F$60,MATCH(DOCU_DCF!$B29,DOCU_IS!$A$10:$A$60,0),MATCH(DOCU_DCF!I$13,DOCU_IS!$A$10:$F$10,0)) -> 81913 | J29: =INDEX(DOCU_IS!$A$10:$F$60,MATCH(DOCU_DCF!$B29,DOCU_IS!$A$10:$A$60,0),MATCH(DOCU_DCF!J$13,DOCU_IS!$A$10:$F$10,0)) -> 86255 | K29: =-K30*K47 -> 90618 | L29: 85851.11563 | M29: 80938.77906 | N29: 75794.2313 | O29: 69999.33058 | P29: 75599.27702 | Q29: 81647.21919
B30: Capex | F30: =INDEX(DOCU_IS!$A$10:$F$59,MATCH(DOCU_DCF!$B30,DOCU_IS!$A$10:$A$59,0),MATCH(DOCU_DCF!F$13,DOCU_IS!$A$10:$F$10,0)) -> -30413 | G30: =INDEX(DOCU_IS!$A$10:$F$59,MATCH(DOCU_DCF!$B30,DOCU_IS!$A$10:$A$59,0),MATCH(DOCU_DCF!G$13,DOCU_IS!$A$10:$F$10,0)) -> -72046 | H30: =INDEX(DOCU_IS!$A$10:$F$59,MATCH(DOCU_DCF!$B30,DOCU_IS!$A$10:$A$59,0),MATCH(DOCU_DCF!H$13,DOCU_IS!$A$10:$F$10,0)) -> -82395 | I30: =INDEX(DOCU_IS!$A$10:$F$59,MATCH(DOCU_DCF!$B30,DOCU_IS!$A$10:$A$59,0),MATCH(DOCU_DCF!I$13,DOCU_IS!$A$10:$F$10,0)) -> -61396 | J30: =INDEX(DOCU_IS!$A$10:$F$59,MATCH(DOCU_DCF!$B30,DOCU_IS!$A$10:$A$59,0),MATCH(DOCU_DCF!J$13,DOCU_IS!$A$10:$F$10,0)) -> -77654 | K30: =-K46*K16 -> -82380 | L30: =-L46*L16 -> -80801.05 | M30: -78964.6625 | N30: -76753.65195 | O30: -73683.50587 | P30: -79578.18634 | Q30: -85944.44125
B31: Change in Net Working Capital | G31: =-(G89) -> 47699 | H31: =-(H89) -> 163618 | I31: 115099 | J31: 5717 | K31: 21132 | L31: 38444 | M31: 44073.3 | N31: 50537.384 | O31: 54580.37472 | P31: =-(P89) -> 58946.8047 | Q31: =-(Q89) -> 63662.54907
B32: Unlevered free cash flows | F32: =SUM(F27:F31) -> -418709 | G32: -167674 | H32: -21542 | I32: 73732 | J32: -45378 | K32: 106780 | L32: 248802.1881 | M32: 387174.7586 | N32: 548050.2918 | O32: 729705.4973 | P32: 788081.9371 | Q32: 694627.4176
F35: Historical | K35: Projected
F36: =F13 -> 2019 | G36: =F36+1 -> 2020 | H36: 2021 | I36: 2022 | J36: 2023 | K36: 2024 | L36: 2025 | M36: 2026 | N36: 2027 | O36: 2028 | P36: 2029 | Q36: 2030
B37: Assumptions
B38: Subscription Growth | G38: =G14/F14-1 -> 0.3839423075 | H38: 0.5040311912 | I38: 0.4747910992 | J38: 0.1987486207 | K38: =DOCU_Forecast!H12 -> 0.09328685022 | L38: =DOCU_Forecast!I12 -> 0.07294550562 | M38: =DOCU_Forecast!J12 -> 0.075 | N38: =DOCU_Forecast!K12 -> 0.08 | O38: =DOCU_Forecast!L12 -> 0.08 | P38: 0.08 | Q38: 0.08
B39: Professional Growth | G39: 0.4876715266 | H39: 0.290804929 | I39: -0.02385205862 | J39: 0.05428861469 | K39: =DOCU_Forecast!H14 -> 0.03067617782 | L39: =DOCU_Forecast!I14 -> -0.03348026316 | M39: =DOCU_Forecast!J14 -> 0.075 | N39: =DOCU_Forecast!K14 -> 0.08 | O39: =DOCU_Forecast!L14 -> 0.08 | P39: 0.08 | Q39: 0.08
B40: Sales Growth | G40: 0.3894637281 | H40: 0.4918791217 | I40: 0.4502029184 | J40: 0.1939538148 | K40: =DOCU_Forecast!H8 -> 0.09145181773 | L40: =DOCU_Forecast!I8 -> 0.07 | M40: =DOCU_Forecast!J8 -> 0.075 | N40: =DOCU_Forecast!K8 -> 0.08 | O40: =DOCU_Forecast!L8 -> 0.08 | P40: 0.08 | Q40: 0.08 | T40: 2028
B41: COGS-subscription (as a % of subscription) | F41: =F17/F14 -> 0.1774470849 | G41: 0.1784840543 | H41: 0.188209472 | I41: 0.1686868518 | J41: 0.1744660604 | K41: 0.17 | L41: =K41+$U41 -> 0.17 | M41: 0.17 | N41: 0.17 | O41: 0.17 | P41: 0.17 | Q41: 0.17 | S41: Step | T41: 0.17 | U41: =(T41-K41)/($O$36-$K$36) -> 0
B42: COGS-professional (as a % of professional) | F42: 2.000884434 | G42: 1.428676947 | H42: 1.452421493 | I42: 1.755622596 | J42: 1.491917329 | K42: 1.5 | L42: 1.425 | M42: 1.35 | N42: 1.275 | O42: 1.2 | P42: 1.2 | Q42: 1.2 | S42: Step | T42: 1.2 | U42: -0.075
B43: Sales & Marketing (as a % of revenue) | F43: =F21/F16 -> 0.769800091 | G43: =G21/G16 -> 0.6071833761 | H43: =H21/H16 -> 0.5496209001 | I43: =I21/I16 -> 0.5108771633 | J43: =J21/J16 -> 0.4939399781 | K43: 0.45 | L43: 0.425 | M43: 0.4 | N43: 0.375 | O43: 0.35 | P43: 0.35 | Q43: 0.35 | S43: Step | T43: 0.35 | U43: -0.025
B44: R&D expenses (as % of revenues) | F44: =F22/F16 -> 0.2653013186 | G44: =G22/G16 -> 0.1905108058 | H44: =H22/H16 -> 0.1868638798 | I44: =I22/I16 -> 0.1866740572 | J44: =J22/J16 -> 0.1910175821 | K44: 0.19 | L44: 0.1875 | M44: 0.185 | N44: 0.1825 | O44: 0.18 | P44: 0.18 | Q44: 0.18 | S44: Step | T44: 0.18 | U44: -0.0025
B45: G&A (as a % of revenue) | F45: =F23/F16 -> 0.2985823909 | G45: =G23/G16 -> 0.1512519367 | H45: =H23/H16 -> 0.1326158066 | I45: =I23/I16 -> 0.1104572722 | J45: =J23/J16 -> 0.1256910508 | K45: 0.125 | L45: 0.11625 | M45: 0.1075 | N45: 0.09875 | O45: 0.09 | P45: 0.09 | Q45: 0.09 | S45: Step | T45: 0.09 | U45: -0.00875
B46: Capex (as % of revenues) | F46: =-F30/F16 -> 0.04338708274 | G46: =-G30/G16 -> 0.07397140161 | H46: =-H30/H16 -> 0.05670497926 | I46: =-I30/I16 -> 0.02913611486 | J46: =-J30/J16 -> 0.03086511269 | K46: 0.03 | L46: 0.0275 | M46: 0.025 | N46: 0.0225 | O46: 0.02 | P46: 0.02 | Q46: 0.02 | S46: Step | T46: 0.02 | U46: -0.0025
B47: Depreciation and amortization (as % of capex) | F47: =-F29/F30 -> 1.250353467 | G47: =-G29/G30 -> 0.6965272187 | H47: =-H29/H30 -> 0.8627950725 | I47: =-I29/I30 -> 1.334174865 | J47: =-J29/J30 -> 1.110760553 | K47: 1.1 | L47: 1.0625 | M47: 1.025 | N47: 0.9875 | O47: 0.95 | P47: 0.95 | Q47: 0.95 | S47: Step | T47: 0.95 | U47: -0.0375
B48: Gross margin | F48: =F19/F16 -> 0.7254928535 | G48: =G19/G16 -> 0.750265665 | H48: =H19/H16 -> 0.7494520136 | I48: =I19/I16 -> 0.7786407924 | J48: =J19/J16 -> 0.7869212593
A50: x | B50: TERMINAL VALUE AND EQUITY VALUE PER SHARE
F52: Terminal Value - Perpetuity Growth | K52: Terminal Value - Exit Multiple | P52: Option Drag
F54: Unlevered FCF in terminal year | H54: =Q32 -> 694627.4176 | K54: Terminal year EBITDA | N54: =Q24+Q29 -> 873410.3842 | P54: Implied Equity Value (Using TV)
F55: Terminal growth rate | H55: 0.05 | K55: Terminal year EBITDA multiple | N55: 28.43 | P55: Basic Shares
F56: Terminal value | H56: =H54*(1+H55)/(H57-H55) -> 17199721.92 | K56: Terminal value | N56: =N55*N54 -> 24831057.22 | P56: Value of Options
F57: WACC - current | H57: =F134 -> 0.09240526632 | K57: WACC - current | N57: =F134 -> 0.09240526632 | P57: Implied Equity Value per Share
F58: PV of Terminal Value | H58: =H56/(1+H57)^(Q36-J36) -> 9264776.122 | K58: PV of Terminal Value | N58: =PV(N57,Q36-J36,,N56)*-1 -> 13375459.63
P59: Treasury Outstanding Options
F60: PV of Unlevered Free Cash Flows | H60: =NPV(H57,K32:Q32) -> 2295043.214 | K60: PV of Unlevered Free Cash Flows | N60: =NPV(H57,K32:Q32) -> 2295043.214 | P60: Implied Equity Value
F61: Total Enterprise Value | H61: =H60+H58 -> 11559819.34 | K61: Total Enterprise Value | N61: =N60+N58 -> 15670502.84 | P61: Diluted Shares Outstanding
F62: Net debt + Preferred stock + NCI | H62: =DOCU_BS!B49+DOCU_BS!B51+DOCU_BS!B56-DOCU_BS!B16-DOCU_BS!B17-DOCU_BS!B27 -> -329425 | K62: Net debt + Preferred stock + NCI | N62: =DOCU_BS!B49+DOCU_BS!B51+DOCU_BS!B56-DOCU_BS!B16-DOCU_BS!B17-DOCU_BS!B27 -> -329425 | P62: Total Proceeds
F63: Implied Equity Value | H63: =H61-H62 -> 11889244.34 | K63: Implied Equity Value | N63: =N61-N62 -> 15999927.84 | P63: Implied Equity Value per Share
F64: Diluted Shares Outstanding | K64: Diluted Shares Outstanding
F65: Implied Equity Value per Share | K65: Implied Equity Value per Share
A69: x | B69: WORKING CAPITAL SCHEDULE
F72: Historical | K72: Projected
F73: =F13 -> 2019 | G73: =F73+1 -> 2020 | H73: 2021 | I73: 2022 | J73: 2023 | K73: 2024 | L73: 2025 | M73: 2026 | N73: 2027 | O73: 2028 | P73: =O73+1 -> 2029 | Q73: =P73+1 -> 2030
B74: Total current assets | F74: =INDEX(DOCU_BS!$10:$67,MATCH(DOCU_DCF!$B74,DOCU_BS!$A$10:$A$67,0),MATCH(DOCU_DCF!F$73,DOCU_BS!$A$10:$F$10,0)) -> 984521 | G74: =INDEX(DOCU_BS!$10:$67,MATCH(DOCU_DCF!$B74,DOCU_BS!$A$10:$A$67,0),MATCH(DOCU_DCF!G$73,DOCU_BS!$A$10:$F$10,0)) -> 943890 | H74: =INDEX(DOCU_BS!$10:$67,MATCH(DOCU_DCF!$B74,DOCU_BS!$A$10:$A$67,0),MATCH(DOCU_DCF!H$73,DOCU_BS!$A$10:$F$10,0)) -> 1162348 | I74: =INDEX(DOCU_BS!$10:$67,MATCH(DOCU_DCF!$B74,DOCU_BS!$A$10:$A$67,0),MATCH(DOCU_DCF!I$73,DOCU_BS!$A$10:$F$10,0)) -> 1319596 | J74: =INDEX(DOCU_BS!$10:$67,MATCH(DOCU_DCF!$B74,DOCU_BS!$A$10:$A$67,0),MATCH(DOCU_DCF!J$73,DOCU_BS!$A$10:$F$10,0)) -> 1631004
B75: Cash & cash equivalents | F75: =INDEX(DOCU_BS!$10:$67,MATCH(DOCU_DCF!$B75,DOCU_BS!$A$10:$A$67,0),MATCH(DOCU_DCF!F$73,DOCU_BS!$A$10:$F$10,0)) -> 517811 | G75: =INDEX(DOCU_BS!$10:$67,MATCH(DOCU_DCF!$B75,DOCU_BS!$A$10:$A$67,0),MATCH(DOCU_DCF!G$73,DOCU_BS!$A$10:$F$10,0)) -> 241203 | H75: =INDEX(DOCU_BS!$10:$67,MATCH(DOCU_DCF!$B75,DOCU_BS!$A$10:$A$67,0),MATCH(DOCU_DCF!H$73,DOCU_BS!$A$10:$F$10,0)) -> 566055 | I75: =INDEX(DOCU_BS!$10:$67,MATCH(DOCU_DCF!$B75,DOCU_BS!$A$10:$A$67,0),MATCH(DOCU_DCF!I$73,DOCU_BS!$A$10:$F$10,0)) -> 509059 | J75: =INDEX(DOCU_BS!$10:$67,MATCH(DOCU_DCF!$B75,DOCU_BS!$A$10:$A$67,0),MATCH(DOCU_DCF!J$73,DOCU_BS!$A$10:$F$10,0)) -> 721895
B76: Investments | F76: =INDEX(DOCU_BS!$10:$67,MATCH(DOCU_DCF!$B76,DOCU_BS!$A$10:$A$67,0),MATCH(DOCU_DCF!F$73,DOCU_BS!$A$10:$F$10,0)) -> 251203 | G76: =INDEX(DOCU_BS!$10:$67,MATCH(DOCU_DCF!$B76,DOCU_BS!$A$10:$A$67,0),MATCH(DOCU_DCF!G$73,DOCU_BS!$A$10:$F$10,0)) -> 414939 | H76: =INDEX(DOCU_BS!$10:$67,MATCH(DOCU_DCF!$B76,DOCU_BS!$A$10:$A$67,0),MATCH(DOCU_DCF!H$73,DOCU_BS!$A$10:$F$10,0)) -> 207450 | I76: =INDEX(DOCU_BS!$10:$67,MATCH(DOCU_DCF!$B76,DOCU_BS!$A$10:$A$67,0),MATCH(DOCU_DCF!I$73,DOCU_BS!$A$10:$F$10,0)) -> 293763 | J76: =INDEX(DOCU_BS!$10:$67,MATCH(DOCU_DCF!$B76,DOCU_BS!$A$10:$A$67,0),MATCH(DOCU_DCF!J$73,DOCU_BS!$A$10:$F$10,0)) -> 309771
B77: Add:
B78: Deferred contract acquisition costs - noncurrent | F78: =INDEX(DOCU_BS!$10:$67,MATCH(DOCU_DCF!$B78,DOCU_BS!$A$10:$A$67,0),MATCH(DOCU_DCF!F$73,DOCU_BS!$A$10:$F$10,0)) -> 112583 | G78: =INDEX(DOCU_BS!$10:$67,MATCH(DOCU_DCF!$B78,DOCU_BS!$A$10:$A$67,0),MATCH(DOCU_DCF!G$73,DOCU_BS!$A$10:$F$10,0)) -> 153333 | H78: =INDEX(DOCU_BS!$10:$67,MATCH(DOCU_DCF!$B78,DOCU_BS!$A$10:$A$67,0),MATCH(DOCU_DCF!H$73,DOCU_BS!$A$10:$F$10,0)) -> 260130 | I78: =INDEX(DOCU_BS!$10:$67,MATCH(DOCU_DCF!$B78,DOCU_BS!$A$10:$A$67,0),MATCH(DOCU_DCF!I$73,DOCU_BS!$A$10:$F$10,0)) -> 311835 | J78: =INDEX(DOCU_BS!$10:$67,MATCH(DOCU_DCF!$B78,DOCU_BS!$A$10:$A$67,0),MATCH(DOCU_DCF!J$73,DOCU_BS!$A$10:$F$10,0)) -> 350899
B79: Total non-cash current assets | F79: =F74-F75-F76+F78 -> 328090 | G79: =G74-G75-G76+G78 -> 441081 | H79: 648973 | I79: 828609 | J79: 950237
B81: Total current liabilities | F81: =INDEX(DOCU_BS!$10:$67,MATCH(DOCU_DCF!$B81,DOCU_BS!$A$10:$A$67,0),MATCH(DOCU_DCF!F$73,DOCU_BS!$A$10:$F$10,0)) -> 516313 | G81: =INDEX(DOCU_BS!$10:$67,MATCH(DOCU_DCF!$B81,DOCU_BS!$A$10:$A$67,0),MATCH(DOCU_DCF!G$73,DOCU_BS!$A$10:$F$10,0)) -> 693965 | H81: =INDEX(DOCU_BS!$10:$67,MATCH(DOCU_DCF!$B81,DOCU_BS!$A$10:$A$67,0),MATCH(DOCU_DCF!H$73,DOCU_BS!$A$10:$F$10,0)) -> 1093173 | I81: =INDEX(DOCU_BS!$10:$67,MATCH(DOCU_DCF!$B81,DOCU_BS!$A$10:$A$67,0),MATCH(DOCU_DCF!I$73,DOCU_BS!$A$10:$F$10,0)) -> 1371639 | J81: =INDEX(DOCU_BS!$10:$67,MATCH(DOCU_DCF!$B81,DOCU_BS!$A$10:$A$67,0),MATCH(DOCU_DCF!J$73,DOCU_BS!$A$10:$F$10,0)) -> 2208322
B82: Convertible senior notes - current | F82: =INDEX(DOCU_BS!$10:$67,MATCH(DOCU_DCF!$B82,DOCU_BS!$A$10:$A$67,0),MATCH(DOCU_DCF!F$73,DOCU_BS!$A$10:$F$10,0)) -> 0 | G82: =INDEX(DOCU_BS!$10:$67,MATCH(DOCU_DCF!$B82,DOCU_BS!$A$10:$A$67,0),MATCH(DOCU_DCF!G$73,DOCU_BS!$A$10:$F$10,0)) -> 0 | H82: =INDEX(DOCU_BS!$10:$67,MATCH(DOCU_DCF!$B82,DOCU_BS!$A$10:$A$67,0),MATCH(DOCU_DCF!H$73,DOCU_BS!$A$10:$F$10,0)) -> 20469 | I82: =INDEX(DOCU_BS!$10:$67,MATCH(DOCU_DCF!$B82,DOCU_BS!$A$10:$A$67,0),MATCH(DOCU_DCF!I$73,DOCU_BS!$A$10:$F$10,0)) -> 0 | J82: =INDEX(DOCU_BS!$10:$67,MATCH(DOCU_DCF!$B82,DOCU_BS!$A$10:$A$67,0),MATCH(DOCU_DCF!J$73,DOCU_BS!$A$10:$F$10,0)) -> 722887
B83: Operating lease liabilities-current | F83: =INDEX(DOCU_BS!$10:$67,MATCH(DOCU_DCF!$B83,DOCU_BS!$A$10:$A$67,0),MATCH(DOCU_DCF!F$73,DOCU_BS!$A$10:$F$10,0)) -> 0 | G83: =INDEX(DOCU_BS!$10:$67,MATCH(DOCU_DCF!$B83,DOCU_BS!$A$10:$A$67,0),MATCH(DOCU_DCF!G$73,DOCU_BS!$A$10:$F$10,0)) -> 20728 | H83: =INDEX(DOCU_BS!$10:$67,MATCH(DOCU_DCF!$B83,DOCU_BS!$A$10:$A$67,0),MATCH(DOCU_DCF!H$73,DOCU_BS!$A$10:$F$10,0)) -> 32971 | I83: =INDEX(DOCU_BS!$10:$67,MATCH(DOCU_DCF!$B83,DOCU_BS!$A$10:$A$67,0),MATCH(DOCU_DCF!I$73,DOCU_BS!$A$10:$F$10,0)) -> 37404 | J83: =INDEX(DOCU_BS!$10:$67,MATCH(DOCU_DCF!$B83,DOCU_BS!$A$10:$A$67,0),MATCH(DOCU_DCF!J$73,DOCU_BS!$A$10:$F$10,0)) -> 24055
B84: Add:
B85: Contract liabilities - noncurrent | F85: =INDEX(DOCU_BS!$10:$67,MATCH(DOCU_DCF!$B85,DOCU_BS!$A$10:$A$67,0),MATCH(DOCU_DCF!F$73,DOCU_BS!$A$10:$F$10,0)) -> 7712 | G85: =INDEX(DOCU_BS!$10:$67,MATCH(DOCU_DCF!$B85,DOCU_BS!$A$10:$A$67,0),MATCH(DOCU_DCF!G$73,DOCU_BS!$A$10:$F$10,0)) -> 11478 | H85: =INDEX(DOCU_BS!$10:$67,MATCH(DOCU_DCF!$B85,DOCU_BS!$A$10:$A$67,0),MATCH(DOCU_DCF!H$73,DOCU_BS!$A$10:$F$10,0)) -> 16492 | I85: =INDEX(DOCU_BS!$10:$67,MATCH(DOCU_DCF!$B85,DOCU_BS!$A$10:$A$67,0),MATCH(DOCU_DCF!I$73,DOCU_BS!$A$10:$F$10,0)) -> 16725 | J85: =INDEX(DOCU_BS!$10:$67,MATCH(DOCU_DCF!$B85,DOCU_BS!$A$10:$A$67,0),MATCH(DOCU_DCF!J$73,DOCU_BS!$A$10:$F$10,0)) -> 16925
B86: Total non-debt current liabilities | F86: =F81-F82-F83+F85 -> 524025 | G86: =G81-G82-G83+G85 -> 684715 | H86: =H81-H82-H83+H85 -> 1056225 | I86: =I81-I82-I83+I85 -> 1350960 | J86: =J81-J82-J83+J85 -> 1478305
B88: Non-cash Net Working Capital | F88: =F79-F86 -> -195935 | G88: =G79-G86 -> -243634 | H88: =H79-H86 -> -407252 | I88: =I79-I86 -> -522351 | J88: =J79-J86 -> -528068 | K88: =K94*K16 -> -549200 | L88: -587644 | M88: -631717.3 | N88: -682254.684 | O88: -736835.0587 | P88: -795781.8634 | Q88: -859444.4125
B89: Change in NWC | G89: =G88-F88 -> -47699 | H89: -163618 | I89: -115099 | J89: -5717 | K89: -21132 | L89: -38444 | M89: -44073.3 | N89: -50537.384 | O89: -54580.37472 | P89: -58946.8047 | Q89: -63662.54907
F92: Historical | K92: Projected
F93: =F73 -> 2019 | G93: =F93+1 -> 2020 | H93: 2021 | I93: 2022 | J93: 2023 | K93: 2024 | L93: 2025 | M93: 2026 | N93: 2027 | O93: 2028 | P93: =O93+1 -> 2029 | Q93: =P93+1 -> 2030
B94: Non-cash NWC as a % of Sale | F94: =F88/F16 -> -0.279520207 | G94: =G88/G16 -> -0.2501450249 | H94: =H88/H16 -> -0.2802744853 | I94: =I88/I16 -> -0.2478871381 | J94: =J88/J16 -> -0.2098910337 | K94: -0.2 | L94: =K94+$U$94 -> -0.2 | M94: -0.2 | N94: -0.2 | O94: -0.2 | P94: -0.2 | Q94: -0.2 | S94: Step | T94: -0.2 | U94: =(T94-K94)/(Q93-K93) -> 0
A97: x | B97: DILUTED SHARES
F100: Treasury with a Twist- All Outstanding Options | K100: Treasury Method- All Outstanding Options
F101: Basic share count | K101: Basic share count
F102: Outstanding options | K102: Oustanding options
F103: Exercise price | K103: Exercise price
F104: Current share price | I104: =C4 -> 53.89
F105: In-the-money options
F106: Total proceeds | K106: Total proceeds
F107: Total shares repurchased
F108: Diluted shares outstanding | K108: Diluted shares outstanding
A111: x | B111: WACC
F113: Current
B114: Percent of Capital
B115: Total debt | F115: =DOCU_BS!B49+DOCU_BS!B51+DOCU_BS!B56 -> 888290
B116: Share price | F116: =C4 -> 53.89
B117: Shares outstanding | F117: 203933.894 | G117: Note: This will be updated to diluted shares.
B118: Market value of equity | F118: =F117*F116 -> 10989997.55
B120: Weight of debt | F120: =F115/(F115+F118) -> 0.07478266513
B121: Weight of equity | F121: =F118/(F118+F115) -> 0.9252173349
B123: Cost of debt
B124: Default Spread | F124: 0.0221
B125: Pre-tax cost of debt | F125: =F124+F129 -> 0.06308
B126: Marginal tax rate | F126: 0.25
B128: Cost of equity
B129: Risk-free rate | F129: 0.04098
B130: Market risk premium (Rm - Rf) | F130: 0.0418
B131: Beta | F131: =C153 -> 1.317468599
B132: Cost of equity | F132: =F129+F130*F131 -> 0.09605018744
B134: Weighted average cost of capital | F134: =F125*F120*(1-F126)+F132*F121 -> 0.09240526632
A136: x | B136: BOTTOM UP BETA
E139: MV | F139: Book Value | G139: Debt/ | H139: Reg | I139: Unlevered | K139: Marginal
B140: Company | C140: Ticker | E140: Equity | F140: Debt | G140: Equity | H140: Beta | I140: Beta | K140: Tax Rate
B141: RingCentral, Inc | C141: RNG | E141: 3126.8 | F141: =1374.19+222.2 -> 1596.39 | G141: =F141/E141 -> 0.5105507228 | H141: 0.92 | I141: =H141/(1+((1-K141)*G141)) -> 0.6652623643 | K141: 0.25
B142: Splunk Inc | C142: SPLK | E142: 26319.1 | F142: =1258.02+2003.55 -> 3261.57 | G142: 0.1239240704 | H142: 1 | I142: =H142/(1+((1-K142)*G142)) -> 0.9149607543 | K142: =$K$141 -> 0.25
B143: Palentir Technologies, Inc | C143: PLTR | E143: 55163.4 | F143: =54.18+175.22 -> 229.4 | G143: 0.004158554404 | H143: 2.81 | I143: 2.801263096 | K143: 0.25
B144: Datadog, Inc | C144: DDOG | E144: 43216.6 | F144: =21.97+724.24+138.13 -> 884.34 | G144: 0.02046297025 | H144: 1.17 | I144: 1.152315157 | K144: 0.25
B145: Dynatrace Inc | C145: DT | E145: 14518.8 | F145: =16.29+58 -> 74.29 | G145: 0.005116814062 | H145: 1.08 | I145: 1.075871225 | K145: 0.25
B146: CoStar Group inc | C146: CSGP | E146: 35809.3 | F146: =40+66+990.5 -> 1096.5 | G146: 0.03062053712 | H146: 0.83 | I146: 0.8113666383 | K146: 0.25
B147: Adobe Inc | C147: ADBE | E147: 245773.3 | F147: =73+373+3634 -> 4080 | G147: 0.01660066411 | H147: 1.29 | I147: 1.274136368 | K147: 0.25
B149: Average unlevered beta | C149: =AVERAGE(I141:I147) -> 1.242167943
B150: Average unlevered beta (Full industry) | C150: 1.24
B151: =C3&" Debt/Equity ratio" -> DOCU Debt/Equity ratio | C151: =F115/F118 -> 0.0808271336
B152: =C3&" Tax Rate" -> DOCU Tax Rate | C152: =F126 -> 0.25
B153: =C3&" Levered Beta" -> DOCU Levered Beta | C153: =C149*(1+(1-C152)*C151) -> 1.317468599
A155: x | B155: SENSITIVITY ANALYSIS

Sheet DOCU_Forecast
B2: Key metrics (Annual)
C3: 2019 | D3: =C3+1 -> 2020 | E3: =D3+1 -> 2021 | F3: 2022 | G3: 2023 | H3: 2024 | I3: 2025 | J3: 2026 | K3: 2027 | L3: 2028
B4: Revenue | C4: 700969 | D4: 973971 | E4: 1453047 | F4: 2107213 | G4: 2515915 | H4: 2746000 | I4: =H4*(1+I8) -> 2938220 | J4: =I4*(1+J8) -> 3158586.5 | K4: =J4*(1+K8) -> 3411273.42 | L4: =K4*(1+L8) -> 3684175.294
B5: Direct (%) | C5: 0.85 | D5: 0.86 | E5: 0.87 | F5: 0.88 | G5: 0.87 | H5: 0.86 | I5: 0.855 | J5: =I5 -> 0.855 | K5: 0.855 | L5: 0.855
B6: Digital (%) | C6: 0.15 | D6: 0.14 | E6: 0.13 | F6: 0.12 | G6: 0.13 | H6: 0.14 | I6: 0.145 | J6: 0.145 | K6: 0.145 | L6: 0.145
B8: Revenue growth | H8: =H4/G4-1 -> 0.09145181773 | I8: 0.07 | J8: 0.075 | K8: 0.08 | L8: 0.08
B10: Subscription Revenue | C10: 663657 | D10: 918463 | E10: 1381397 | F10: 2037272 | G10: 2442177 | H10: 2670000 | I10: =I4*I11 -> 2864764.5 | J10: =J4*J11 -> 3079621.837 | K10: =K4*K11 -> 3325991.585 | L10: =L4*L11 -> 3592070.911
B11: % of revenue | C11: =C10/C4 -> 0.9467708272 | D11: =D10/D4 -> 0.9430085701 | E11: 0.9506898263 | F11: 0.9668087659 | G11: 0.9706913787 | H11: 0.975 | I11: 0.975 | J11: 0.975 | K11: 0.975 | L11: 0.975
B12: % growth | H12: =H10/G10-1 -> 0.09328685022 | I12: =I10/H10-1 -> 0.07294550562 | J12: =J10/I10-1 -> 0.075 | K12: =K10/J10-1 -> 0.08 | L12: =L10/K10-1 -> 0.08
B13: Professional Revenue | G13: =G4-G10 -> 73738 | H13: 76000 | I13: 73455.5 | J13: 78964.6625 | K13: 85281.8355 | L13: 92104.38234
B14: % growth | H14: =H13/G13-1 -> 0.03067617782 | I14: =I13/H13-1 -> -0.03348026316 | J14: =J13/I13-1 -> 0.075 | K14: =K13/J13-1 -> 0.08 | L14: =L13/K13-1 -> 0.08
B16: Customers (in thousands) | C16: 477 | D16: 589 | E16: 892 | F16: 1170 | G16: 1360 | H16: =G16*(1+H17) -> 1536.8 | I16: =H16*(1+I17) -> 1713.532 | J16: =I16*(1+J17) -> 1867.74988 | K16: =J16*(1+K17) -> 2017.16987 | L16: =K16*(1+L17) -> 2158.371761
B17: % growth | D17: =D16/C16-1 -> 0.2348008386 | E17: =E16/D16-1 -> 0.5144312394 | F17: =F16/E16-1 -> 0.3116591928 | G17: =G16/F16-1 -> 0.1623931624 | H17: 0.13 | I17: 0.115 | J17: 0.09 | K17: 0.08 | L17: 0.07
B18: Enterprise | C18: 56 | D18: 75 | E18: 125 | F18: 170 | G18: 211 | H18: =G18*(1+H19) -> 242.65 | I18: =H18*(1+I19) -> 274.1945 | J18: =I18*(1+J19) -> 301.61395 | K18: =J18*(1+K19) -> 327.2511358 | L18: =K18*(1+L19) -> 351.7949709
B19: % growth | D19: =D18/C18-1 -> 0.3392857143 | E19: =E18/D18-1 -> 0.6666666667 | F19: =F18/E18-1 -> 0.36 | G19: =G18/F18-1 -> 0.2411764706 | H19: 0.15 | I19: 0.13 | J19: 0.1 | K19: 0.085 | L19: 0.075
B20: Small | C20: =C16-C18 -> 421 | D20: 514 | E20: 767 | F20: 1000 | G20: 1149 | H20: 1294.15 | I20: 1439.3375 | J20: 1566.13593 | K20: 1689.918735 | L20: 1806.57679
B21: % growth | D21: =D20/C20-1 -> 0.2209026128 | E21: 0.4922178988 | F21: 0.3037809648 | G21: 0.149 | H21: 0.1263272411 | I21: 0.1121875362 | J21: 0.08809499509 | K21: 0.07903707608 | L21: 0.06903175481
B23: Large (>300k) | C23: 310 | D23: 437 | E23: 599 | F23: 852 | G23: 1080 | H23: =G23*(1+H24) -> 1069.2 | I23: =H23*(1+I24) -> 1101.276 | J23: =I23*(1+J24) -> 1156.3398 | K23: =J23*(1+K24) -> 1214.15679 | L23: =K23*(1+L24) -> 1274.86463
B24: % growth | D24: =D23/C23-1 -> 0.4096774194 | E24: =E23/D23-1 -> 0.3707093822 | F24: =F23/E23-1 -> 0.4223706177 | G24: =G23/F23-1 -> 0.2676056338 | H24: -0.01 | I24: 0.03 | J24: 0.05 | K24: 0.05 | L24: 0.05
B26: Enterprise/Direct ARPC | C26: =(C4*C5)/C18 -> 10639.70804 | D26: 11168.2008 | E26: 10113.20712 | F26: 10907.92612 | G26: 10373.67796 | H26: 9732.371729 | I26: 9162.029508 | J26: 8953.801565 | K26: 8912.539807 | L26: 8953.99348
B27: Digital ARPC | C27: =(C4*C6)/C20 -> 249.7514252 | D27: 265.28393 | E27: 246.2791525 | F27: 252.86556 | G27: 284.655309 | H27: 297.0598462 | I27: 295.9986105 | J27: =(J4*J6)/J20 -> 292.4363293 | K27: =(K4*K6)/K20 -> 292.6972971 | L27: =(L4*L6)/L20 -> 295.7003657
B31: S&M | C31: 539606 | D31: 591379 | E31: 798625 | F31: 1076527 | G31: 1242711 | H31: =H4*H32 -> 1235700 | I31: =I4*I32 -> 1248743.5 | J31: =J4*J32 -> 1263434.6 | K31: =K4*K32 -> 1279227.533 | L31: =L4*L32 -> 1289461.353
B32: S&M margin | C32: =C31/C4 -> 0.769800091 | D32: =D31/D4 -> 0.6071833761 | E32: =E31/E4 -> 0.5496209001 | F32: =F31/F4 -> 0.5108771633 | G32: =G31/G4 -> 0.4939399781 | H32: 0.45 | I32: 0.425 | J32: 0.4 | K32: 0.375 | L32: 0.35
B33: CAC (all) | D33: =D31/(D16-C16) -> 5280.169643 | E33: =E31/(E16-D16) -> 2635.726073 | F33: 3872.399281 | G33: 6540.584211 | H33: 6989.253394 | I33: 7065.746441 | J33: 8192.529945 | K33: =K31/(K16-J16) -> 8561.287744 | L33: =L31/(L16-K16) -> 9132.04026
B34: CAC (enterprise) | D34: =D31*D5/(D18-C18) -> 26767.68105 | E34: 13896.075 | F34: 21052.08356 | G34: 26369.72122 | H34: 33576.68246 | I34: 33846.65132 | J34: 39396.72689 | K34: 42662.23099 | L34: =L31*L5/(L18-K18) -> 44919.20062
B35: CAC (small) | D35: =D31*D6/(D20-C20) -> 890.247957 | E35: 410.3606719 | F35: 554.4345064 | G35: 1084.244497 | H35: 1191.8567 | I35: 1247.130831 | J35: 1444.797203 | K35: 1498.495633 | L35: =L31*L6/(L20-K20) -> 1602.734547
B37: International Revenue (%) | E37: 0.2 | F37: 0.23 | G37: 0.25
B40: Key Metric (Quarterely)
C41: FY22 | D41: FY22 | E41: FY22 | F41: FY22 | G41: FY23 | H41: FY23 | I41: FY23 | J41: FY23 | K41: FY24 | L41: FY24 | M41: FY24
C42: Q1 | D42: Q2 | E42: Q3 | F42: Q4 | G42: Q1 | H42: Q2 | I42: Q3 | J42: Q4 | K42: Q1 | L42: Q2 | M42: Q3 | N42: Q4low | O42: Q4high
B43: Dollar Net Retention | C43: 1.25 | D43: 1.24 | E43: 1.21 | F43: 1.19 | G43: 1.14 | H43: 1.1 | I43: 1.08 | J43: 1.07 | K43: 1.05 | L43: 1.02 | M43: 1
B44: Billings ($) | C44: 527 | D44: 595 | E44: 565 | F44: 670 | G44: 614 | H44: 648 | I44: 659 | J44: 739 | K44: 675 | L44: 711 | M44: 692 | N44: 758 | O44: 768
B45: Billings (Y/Y growth) | G45: =G44/C44-1 -> 0.165085389 | H45: 0.08907563025 | I45: 0.1663716814 | J45: 0.1029850746 | K45: 0.0993485342 | L45: 0.09722222222 | M45: =M44/I44-1 -> 0.05007587253
B46: Employees | C46: 6080 | D46: 6551 | E46: 7056 | F46: 7461 | G46: 7642 | H46: 8061 | I46: 7522 | J46: 7336 | K46: 6586 | L46: 6748 | M46: 6945 | N46: 6500
D47: =D46/C46-1 -> 0.07746710526 | E47: =E46/D46-1 -> 0.07708746756 | F47: 0.05739795918 | G47: 0.02425948264 | H47: 0.05482857891 | I47: -0.06686515321 | J47: -0.0247274661 | K47: -0.1022355507 | L47: 0.02459763134 | M47: 0.02919383521 | N47: -0.06407487401

Sheet DOCU_IS
A4: Powered by Clearbit
A5: DocuSign Inc (NMS: DOCU)
A7: Exchange rate used is that of the Year End reported date
A10: As Reported Annual Income Statement | B10: =YEAR(B11) -> 2023 | C10: =YEAR(C11) -> 2022 | D10: =YEAR(D11) -> 2021 | E10: =YEAR(E11) -> 2020 | F10: =YEAR(F11) -> 2019
A11: Report Date | B11: 01/31/2023 | C11: 01/31/2022 | D11: 01/31/2021 | E11: 01/31/2020 | F11: 01/31/2019
A12: Currency | B12: USD | C12: USD | D12: USD | E12: USD | F12: USD
A13: Audit Status | B13: Not Qualified | C13: Not Qualified | D13: Not Qualified | E13: Not Qualified | F13: Not Qualified
A14: Consolidated | B14: Yes | C14: Yes | D14: Yes | E14: Yes | F14: Yes
A15: Scale | B15: Thousands | C15: Thousands | D15: Thousands | E15: Thousands | F15: Thousands
A16: Revenue - subscription | B16: 2442177 | C16: 2037272 | D16: 1381397 | E16: 918463 | F16: 663657
A17: Revenue - professional services & other revenue | B17: 73738 | C17: 69941 | D17: 71650 | E17: 55508 | F17: 37312
A18: Total revenue | B18: 2515915 | C18: 2107213 | D18: 1453047 | E18: 973971 | F18: 700969
A19: Cost of revenue - subscription | B19: 426077 | C19: 343661 | D19: 259992 | E19: 163931 | F19: 117764
A20: Cost of revenue - professional services & other cost of revenue | B20: 110011 | C20: 122790 | D20: 104066 | E20: 79303 | F20: 74657
A21: Total cost of revenue | B21: 536088 | C21: 466451 | D21: 364058 | E21: 243234 | F21: 192421
A22: Gross profit | B22: 1979827 | C22: 1640762 | D22: 1088989 | E22: 730737 | F22: 508548
A23: Sales & marketing expense | B23: 1242711 | C23: 1076527 | D23: 798625 | E23: 591379 | F23: 539606
A24: Research & development expense | B24: 480584 | C24: 393362 | D24: 271522 | E24: 185552 | F24: 185968
A25: General & administrative expense | B25: 316228 | C25: 232757 | D25: 192697 | E25: 147315 | F25: 209297
A26: Restructuring & other related charges | B26: 28335 | C26: - | D26: - | E26: - | F26: -
A27: Total operating expenses | B27: 2067858 | C27: 1702646 | D27: 1262844 | E27: 924246 | F27: 934871
A28: Income (loss) from operations | B28: -88031 | C28: -61884 | D28: -173855 | E28: -193509 | F28: -426323
A29: Interest expense | B29: 6389 | C29: 6443 | D29: 30799 | E29: 29254 | F29: 10844
A30: Gain (loss) on extinguishment of debt | B30: - | C30: - | D30: -33752 | E30: - | F30: -
A31: Interest income & other income (expense), net | B31: 4539 | C31: 1413 | D31: 8914 | E31: 19207 | F31: 8959
A32: Income before income taxes - U.S. | B32: 19673 | C32: -93356 | D32: -240175 | E32: -228476 | F32: -460627
A33: Income before income taxes - international | B33: -109554 | C33: 26442 | D33: 10683 | E33: 24920 | F33: 32419
A34: Income (loss) before provision for (benefit from) income taxes | B34: -89881 | C34: -66914 | D34: -229492 | E34: -203556 | F34: -428208
A35: Current federal income taxes | B35: -464 | C35: -931 | D35: -35 | E35: - | F35: -
A36: Current state income taxes | B36: 1666 | C36: -108 | D36: 269 | E36: 239 | F36: 413
A37: Current foreign income taxes | B37: 4674 | C37: 3407 | D37: 15951 | E37: 3277 | F37: 2838
A38: Current income taxes | B38: 5876 | C38: 2368 | D38: 16185 | E38: 3516 | F38: 3251
A39: Deferred federal income taxes | B39: 21 | C39: 213 | D39: -243 | E39: - | F39: -7083
A40: Deferred state income taxes | B40: -21 | C40: 184 | D40: 5 | E40: -43 | F40: -2
A41: Deferred foreign income taxes | B41: 1697 | C41: 297 | D41: -2172 | E41: 1330 | F41: 2084
A42: Deferred income taxes | B42: 1697 | C42: 694 | D42: -2410 | E42: 1287 | F42: -5001
A43: Provision for (benefit from) income taxes | B43: 7573 | C43: 3062 | D43: 13775 | E43: 4803 | F43: -1750
A44: Net income (loss) | B44: -97454 | C44: -69976 | D44: -243267 | E44: -208359 | F44: -426458
A45: Less: preferred stock accretion | B45: - | C45: - | D45: - | E45: - | F45: 353
A46: Net income (loss) attributable to common stockholders | B46: -97454 | C46: -69976 | D46: -243267 | E46: -208359 | F46: -426811
A47: Weighted average shares outstanding - basic | B47: 200903 | C47: 196675 | D47: 185760 | E47: 176704 | F47: 135163
A48: Weighted average shares outstanding - diluted | B48: 200903 | C48: 196675 | D48: 185760 | E48: 176704 | F48: 135163
A49: Year end shares outstanding | B49: 201904 | C49: 198834 | D49: 192807 | E49: 181254 | F49: 169303
A50: Net earnings (loss) per share - basic | B50: -0.49 | C50: -0.36 | D50: -1.31 | E50: -1.18 | F50: -3.16
A51: Net earnings (loss) per share - diluted | B51: -0.49 | C51: -0.36 | D51: -1.31 | E51: -1.18 | F51: -3.16
A52: Total number of employees | B52: 7336 | C52: 7461 | D52: 5630 | E52: 3909 | F52: 3023
A53: Number of common stockholders | B53: 78 | C53: 73 | D53: 104 | E53: 115 | F53: 248
A54: Foreign currency translation adjustments | B54: -15336 | C54: -7935 | D54: 7468 | E54: - | F54: -
A57: For Model
A58: Depreciation and amortization | B58: 86255 | C58: 81913 | D58: 71090 | E58: 50182 | F58: 38027
A59: Capex | B59: -77654 | C59: -61396 | D59: -82395 | E59: -72046 | F59: -30413
A60: Amortization of deferred contract acquisition & fulfillment costs | B60: 185045 | C60: 144442 | D60: 99384 | E60: 69747 | F60: 42112

Sheet DOCU_BS
A4: Powered by Clearbit
A5: DocuSign Inc (NMS: DOCU)
A7: Exchange rate used is that of the Year End reported date
A10: As Reported Annual Balance Sheet | B10: =YEAR(B11) -> 2023 | C10: =YEAR(C11) -> 2022 | D10: =YEAR(D11) -> 2021 | E10: =YEAR(E11) -> 2020 | F10: =YEAR(F11) -> 2019
A11: Report Date | B11: 01/31/2023 | C11: 01/31/2022 | D11: 01/31/2021 | E11: 01/31/2020 | F11: 01/31/2019
A12: Currency | B12: USD | C12: USD | D12: USD | E12: USD | F12: USD
A13: Audit Status | B13: Not Qualified | C13: Not Qualified | D13: Not Qualified | E13: Not Qualified | F13: Not Qualified
A14: Consolidated | B14: Yes | C14: Yes | D14: Yes | E14: Yes | F14: Yes
A15: Scale | B15: Thousands | C15: Thousands | D15: Thousands | E15: Thousands | F15: Thousands
A16: Cash & cash equivalents | B16: 721895 | C16: 509059 | D16: 566055 | E16: 241203 | F16: 517811
A17: Investments | B17: 309771 | C17: 293763 | D17: 207450 | E17: 414939 | F17: 251203
A18: Restricted cash | B18: - | C18: - | D18: - | E18: 280 | F18: 367
A19: Accounts receivable, gross | B19: 522925 | C19: 446757 | D19: 328932 | E19: 240841 | F19: 175148
A20: Allowance for doubtful accounts | B20: 6011 | C20: 5807 | D20: 5362 | E20: 3000 | F20: 600
A21: Accounts receivable, net | B21: 516914 | C21: 440950 | D21: 323570 | E21: 237841 | F21: 174548
A22: Contract assets - current | B22: 12437 | C22: 12588 | D22: 16883 | E22: 12502 | F22: 10616
A23: Prepaid expenses | B23: - | C23: - | D23: - | E23: 24429 | F23: 18415
A24: Other current assets | B24: - | C24: - | D24: - | E24: 12696 | F24: 11561
A25: Prepaid expenses & other current assets | B25: 69987 | C25: 63236 | D25: 48390 | E25: 37125 | F25: 29976
A26: Total current assets | B26: 1631004 | C26: 1319596 | D26: 1162348 | E26: 943890 | F26: 984521
A27: Investments - noncurrent | B27: 186049 | C27: 94938 | D27: 92717 | E27: 239729 | F27: 164220
A28: Computer & network equipment | B28: 138869 | C28: 127799 | D28: 102163 | E28: 66937 | F28: 55233
A29: Software, including capitalized software development costs | B29: 114524 | C29: 82537 | D29: 56858 | E29: 33373 | F29: 27959
A30: Furniture & office equipment | B30: 20897 | C30: 20939 | D30: 21682 | E30: 16752 | F30: 9511
A31: Leasehold improvements | B31: 73415 | C31: 79811 | D31: 79892 | E31: 59564 | F31: 41464
A32: Total property & equipment, gross | B32: 347705 | C32: 311086 | D32: 260595 | E32: 176626 | F32: 134167
A33: Less: accumulated depreciation | B33: 210781 | C33: 170261 | D33: 121029 | E33: 81228 | F33: 66479
A34: Work in progress | B34: 62968 | C34: 43839 | D34: 25473 | E34: 32895 | F34: 8144
A35: Property & equipment, net | B35: 199892 | C35: 184664 | D35: 165039 | E35: 128293 | F35: 75832
A36: Operating lease right-of-use assets | B36: 141493 | C36: 126021 | D36: 159352 | E36: 149833 | F36: -
A37: Goodwill | B37: 353619 | C37: 355058 | D37: 350151 | E37: 194882 | F37: 195225
A38: Intangible assets, net | B38: 70280 | C38: 98816 | D38: 121828 | E38: 56500 | F38: 74203
A39: Deferred contract acquisition costs - noncurrent | B39: 350899 | C39: 311835 | D39: 260130 | E39: 153333 | F39: 112583
A40: Other assets - noncurrent | B40: 79484 | C40: 50337 | D40: 24942 | E40: 24678 | F40: 8833
A41: Total assets | B41: 3012720 | C41: 2541265 | D41: 2336507 | E41: 1891138 | F41: 1615417
A42: Accounts payable | B42: 24393 | C42: 52804 | D42: 37367 | E42: 28144 | F42: 19590
A43: Accrued expenses | B43: - | C43: - | D43: - | E43: - | F43: 21755
A44: Deferred rent-current | B44: - | C44: - | D44: - | E44: - | F44: 2452
A45: Accrued expenses | B45: - | C45: - | D45: - | E45: 39350 | F45: -
A46: Other current liabilities | B46: - | C46: - | D46: - | E46: 14994 | F46: -
A47: Accrued expenses & other current liabilities | B47: 100987 | C47: 91377 | D47: 66566 | E47: 54344 | F47: -
A48: Accrued compensation | B48: 163133 | C48: 160163 | D48: 156158 | E48: 83189 | F48: 77553
A49: Convertible senior notes - current | B49: 722887 | D49: 20469
A50: Contract liabilities-current | B50: 1172867 | C50: 1029891 | D50: 779642 | E50: 507560 | F50: 381060
A51: Operating lease liabilities-current | B51: 24055 | C51: 37404 | D51: 32971 | E51: 20728
A52: Other liabilities - current | B52: - | C52: - | D52: - | E52: - | F52: 13903
A53: Total current liabilities | B53: 2208322 | C53: 1371639 | D53: 1093173 | E53: 693965 | F53: 516313
A54: Convertible senior notes, net - noncurrent | B54: - | C54: 718487 | D54: 693219 | E54: 465321 | F54: 438932
A55: Contract liabilities - noncurrent | B55: 16925 | C55: 16725 | D55: 16492 | E55: 11478 | F55: 7712
A56: Operating lease liabilities-noncurrent | B56: 141348 | C56: 126340 | D56: 165704 | E56: 162432 | F56: -
A57: Deferred rent - noncurrent | B57: - | C57: - | D57: - | E57: - | F57: 24195
A58: Deferred tax liability - noncurrent | B58: 10723 | C58: 9316 | D58: 6464 | E58: 4920 | F58: 4207
A59: Other liabilities - noncurrent | B59: 18115 | C59: 23255 | D59: 32328 | E59: 6695 | F59: 9696
A60: Total liabilities | B60: 2395433 | C60: 2265762 | D60: 2007380 | E60: 1344811 | F60: 1001055
A61: Convertible senior notes | B61: - | C61: - | D61: 3390 | E61: - | F61: -
A62: Common stock | B62: 20 | C62: 20 | D62: 19 | E62: 18 | F62: 17
A63: Treasury stock, at cost | B63: 1785 | C63: 1532 | D63: 1048 | E63: - | F63: -
A64: Additional paid-in capital | B64: 2240732 | C64: 1720013 | D64: 1702254 | E64: 1685167 | F64: 1545088
A65: Accumulated other comprehensive income (loss) | B65: -22996 | C65: -4809 | D65: 4964 | E65: -1673 | F65: -1965
A66: Retained earnings (accumulated deficit) | B66: -1598684 | C66: -1438189 | D66: -1380452 | E66: -1137185 | F66: -928778
A67: Total stockholders' equity (deficit) | B67: 617287 | C67: 275503 | D67: 325737 | E67: 546327 | F67: 614362

Sheet DOCU_CFS
A4: Powered by Clearbit
A5: DocuSign Inc (NMS: DOCU)
A7: Exchange rate used is that of the Year End reported date
A10: As Reported Annual Cash Flow
A11: Report Date | B11: 01/31/2023 | C11: 01/31/2022 | D11: 01/31/2021 | E11: 01/31/2020 | F11: 01/31/2019
A12: Currency | B12: USD | C12: USD | D12: USD | E12: USD | F12: USD
A13: Audit Status | B13: Not Qualified | C13: Not Qualified | D13: Not Qualified | E13: Not Qualified | F13: Not Qualified
A14: Consolidated | B14: Yes | C14: Yes | D14: Yes | E14: Yes | F14: Yes
A15: Scale | B15: Thousands | C15: Thousands | D15: Thousands | E15: Thousands | F15: Thousands
A16: Net income (loss) | B16: -97454 | C16: -69976 | D16: -243267 | E16: -208359 | F16: -426458
A17: Depreciation & amortization expense | B17: 86255 | C17: 81913 | D17: 71090 | E17: 50182 | F17: 38027
A18: Amortization of deferred contract acquisition & fulfillment costs | B18: 185045 | C18: 144442 | D18: 99384 | E18: 69747 | F18: 42112
A19: Amortization of debt discount & transaction costs | B19: 4970 | C19: 5098 | D19: 28001 | E19: 26389 | F19: 9507
A20: Loss (gain) on extinguishment of debt | B20: - | C20: - | D20: 33752 | E20: - | F20: -
A21: Operating cash flow related to repayments of convertible senior notes | B21: - | C21: - | D21: -75165 | E21: - | F21: -
A22: Non-cash operating lease costs | B22: 27501 | C22: 26819 | D22: 26728 | E22: 19435 | F22: -
A23: Stock-based compensation expense | B23: 538726 | C23: 408542 | D23: 286877 | E23: 206404 | F23: 410978
A24: Deferred income taxes | B24: 1697 | C24: 1369 | D24: -2410 | E24: 1287 | F24: -5001
A25: Other adjustments | B25: 15723 | C25: 9871 | D25: -210 | E25: -1741 | F25: 800
A26: Accounts receivable | B26: -75964 | C26: -117380 | D26: -73913 | E26: -63293 | F26: -42571
A27: Contract assets | B27: - | C27: 4893 | D27: 1912 | E27: -1508 | F27: 4204
A28: Prepaid expenses & other current assets | B28: -5038 | C28: -7074 | D28: -1155 | E28: -3142 | F28: -3283
A29: Deferred contract acquisition & fulfillment costs | B29: -232315 | C29: -207393 | D29: -208510 | E29: -115723 | F29: -80869
A30: Other assets | B30: -22319 | C30: -16389 | D30: -6006 | E30: 1538 | F30: 2658
A31: Accounts payable | B31: -26440 | C31: 12148 | D31: 12128 | E31: 3849 | F31: -7380
A32: Accrued expenses & other liabilities | B32: 7340 | C32: 10828 | D32: 37155 | E32: 9353 | F32: -
A33: Accrued expenses | B33: - | C33: - | D33: - | E33: - | F33: 4214
A34: Accrued compensation | B34: -1781 | C34: 1128 | D34: 64586 | E34: 5636 | F34: 26039
A35: Contract liabilities | B35: 143177 | C35: 250482 | D35: 267750 | E35: 130266 | F35: 100874
A36: Operating lease liabilities | B36: -42364 | C36: -32854 | D36: -21773 | E36: -14624 | F36: -
A37: Deferred rent | B37: - | C37: - | D37: - | E37: - | F37: 1845
A38: Other liabilities | B38: - | C38: - | D38: - | E38: - | F38: 390
A39: Net cash flows from operating activities | B39: 506759 | C39: 506467 | D39: 296954 | E39: 115696 | F39: 76086
A40: Cash paid for acquisition, net of acquired cash | B40: - | C40: -6388 | D40: -180370 | E40: - | F40: -218779
A41: Purchases of marketable securities | B41: -533710 | C41: -384128 | D41: -164989 | E41: -861252 | F41: -
A42: Sales of marketable securities | B42: - | C42: 7569 | D42: 28986 | E42: - | F42: -
A43: Maturities of marketable securities | B43: 423917 | C43: 283184 | D43: 488538 | E43: 627309 | F43: -
A44: Purchases of strategic investments | B44: -3750 | C44: -1750 | D44: -5300 | E44: -15500 | F44: -
A45: Purchases of other investments | B45: - | C45: - | D45: -3241 | E45: - | F45: -415132
A46: Purchases of property & equipment | B46: -77654 | C46: -61396 | D46: -82395 | E46: -72046 | F46: -30413
A47: Net cash flows from investing activities | B47: -191197 | C47: -162909 | D47: 81229 | E47: -321489 | F47: -664324
A48: Proceeds from issuance of convertible senior notes, net of initial purchasers' discounts & transaction costs | B48: - | C48: - | D48: 677370 | E48: - | F48: 560756
A49: Purchase of capped calls related to issuance of convertible senior notes | B49: - | C49: - | D49: -31395 | E49: - | F49: -67563
A50: Repayments of convertible senior notes | B50: -16 | C50: -77906 | D50: -384199 | E50: - | F50: -
A51: Repurchases of common stock | B51: -63041 | C51: - | D51: - | E51: - | F51: -
A52: Payment of revolving credit facility costs | B52: - | C52: - | D52: -2453 | E52: - | F52: -
A53: Proceeds from issuance of common stock in initial public offering, net of underwriting commissions | B53: - | C53: - | D53: - | E53: - | F53: 529305
A54: Payment of tax withholding obligation on RSU settlement | B54: - | C54: - | D54: - | E54: -166504 | F54: -215332
A55: Payment of tax withholding obligation on restricted stock units settlement & employee stock purchase plan purchase | B55: -84403 | C55: -386521 | D55: -372463 | E55: - | F55: -
A56: Proceeds from the exercise of stock options | B56: 12678 | C56: 23729 | D56: 24305 | E56: 72177 | F56: 50211
A57: Proceeds from employee stock purchase plan | B57: 36526 | C57: 46077 | D57: 29859 | E57: 23872 | F57: -
A58: Payment of deferred offering costs | B58: - | C58: - | D58: - | E58: - | F58: -4011
A59: Other financing | B59: - | C59: - | D59: - | E59: - | F59: -250
A60: Net cash flows from financing activities | B60: -98256 | C60: -394621 | D60: -58976 | E60: -70455 | F60: 853116
A61: Effect of foreign exchange on cash, cash equivalents & restricted cash | B61: -3784 | C61: -5594 | D61: 5646 | E61: -447 | F61: -4136
A62: Net increase (decrease) in cash, cash equivalents & restricted cash | B62: 213522 | C62: -56657 | D62: 324853 | E62: -276695 | F62: 260742
A63: Cash, cash equivalents & restricted cash at beginning of period | B63: 509679 | C63: 566336 | D63: 241483 | E63: 518178 | F63: 257436
A64: Cash, cash equivalents & restricted cash at end of period | B64: 723201 | C64: 509679 | D64: 566336 | E64: 241483 | F64: 518178
A65: Cash paid for interest | B65: 185 | C65: 349 | D65: 78040 | E65: 2852 | F65: 204
A66: Cash paid for income taxes | B66: 10416 | C66: 6940 | D66: 3503 | E66: 1970 | F66: 3213

Sheet _Comps
B2: =DOCU_DCF!C2&"Valuation with Public Comparables" -> DocuSignValuation with Public Comparables
B3: =DOCU_DCF!B8 -> Fiscal year ends in January USD in thousands except per share data.
B4: Valuation for period ended
B5: Ticker | C5: =DOCU_DCF!C3 -> DOCU
B6: Valuation Date
B7: Company Name | C7: =DOCU_DCF!C2 -> DocuSign | H7: Enterprise Value Multiples | N7: Equity Value Multiples
F8: Market Value | G8: Enterprise | K8: Forward | L8: 5 year growth | M8: BV | N8: Forward | O8: Forward | P8: Price(Market)- | Q8: Cash/MS as
B9: Company | C9: Ticker | D9: Share price | F9: of Equity | G9: Value | H9: EV/Sales | I9: EV/EBIT | J9: EV/EBITDA | K9: EPS | L9: rate | M9: Equity | N9: P/E | O9: PEG | P9: to-Book | Q9: % of TA
B10: =DOCU_DCF!C2 -> DocuSign | C10: =C5 -> DOCU | D10: =DOCU_DCF!C4 -> 53.89
G19: High
G20: Mean
G21: Median
G22: Low
D25: Implied price per share | E25: Diluted shares outstanding | F25: Implied Equity Value | G25: Implied Enterprise Value | H25: Range of EV/Sales | I25: Range of EV/EBIT | J25: Range of EV/EBITDA | N25: Range of Forward P/E | O25: Range of Forward PEG | P25: Range of Price-to-Book | Q25: Excess Cash
B26: =DOCU_DCF!C2 -> DocuSign

Sheet Option_Value
B2: Valuing Options or Warrants
B3: Enter the current stock price =
B4: Enter the strike price on the option =
B5: Enter the expiration of the option =
B6: Enter the standard deviation in stock prices = | F6: (volatility)
B7: Enter the annualized dividend yield on stock =
B8: Enter the treasury bond rate =
B9: Enter the number of options outstanding =
B10: Enter the number of shares outstanding =
B12: Circuit Breaker | C12: OFF
B14: Do not input any numbers below this line
B15: VALUING WARRANTS WHEN THERE IS DILUTION
B16: Stock Price= | D16: =E3 -> 0 | E16: # Warrants issued= | G16: =E9 -> 0
B17: Strike Price= | D17: =E4 -> 0 | E17: # Shares outstanding= | G17: =E10 -> 0
B18: Adjusted S = | D18: =(D16*G17+D29*G16)/(G17+G16) ->  | E18: T.Bond rate= | G18: =E8 -> 0
B19: Adjusted K = | D19: =D17 -> 0 | E19: Variance= | G19: =E6^2 -> 0
B20: Expiration (in years) = | D20: =E5 -> 0 | E20: Annualized dividend yield= | G20: =E7 -> 0
E21: Div. Adj. interest rate= | G21: =G18-G20 -> 0
B23: d1 = | C23: =(LN(D18/D19)+(G21+(G19/2))*D20)/(((G19)^(0.5))*(D20^0.5)) -> 
B24: N (d1) = | C24: =NORMSDIST(C23) -> 
B26: d2 = | C26: =C23-((G19^0.5)*(D20^(0.5))) -> 
B27: N (d2) = | C27: =NORMSDIST(C26) -> 
B29: Value per option = | D29: =IF(C12="OFF",((EXP((0-G20)*D20))*D18*C24-D19*(EXP((0-G18)*D20))*C27),0) -> 
B30: Value of all options outstanding = | E30: =D29*E9 -> 
